bitfinex/quotes_ETHUSD_20230110
["timestamp","ask_amount","ask_price","bid_price","bid_amount"]
[1673378145016,25.32839,1343.6,1343.2,11.30034358]
[1673378145937,26.10601797,1343.6,1343.2,0.31934358]
[1673378146196,26.10601797,1343.6,1343.2,0.22034358]
[1673378146826,25.32839,1343.6,1343.2,0.22034358]
[1673378147705,14.88758,1343.4,1343.2,0.22034358]
[1673378147886,24.897295,1343.4,1343.2,0.22034358]
[1673378148056,7.44379,1343.4,1343.2,0.22034358]
[1673378148265,1.328,1343.3,1343.2,0.22034358]
[1673378148722,8.77235,1343.3,1343.2,0.22034358]
[1673378148939,1.328,1343.3,1343.2,0.22034358]
[1673378149130,8.77235,1343.3,1343.2,0.22034358]
[1673378149328,11.65704506,1343.3,1343.2,0.22034358]
[1673378149885,28.04574506,1343.3,1343.2,0.22034358]
[1673378150045,29.54574506,1343.3,1343.2,0.22034358]
[1673378151023,33.3434057,1343.3,1343.2,0.22034358]
[1673378151202,34.84764372,1343.3,1343.2,0.22034358]
[1673378151407,53.61882471,1343.3,1343.2,0.22034358]
[1673378151731,53.61882471,1343.3,1343.2,0.03258092]
[1673378151937,6.99,1343.2,1342.9,0.03507339]
[1673378152198,1.328,1343.0,1342.9,0.03507339]
[1673378152412,27.46369064,1343.0,1342.9,0.03507339]
[1673378152722,29.80754226,1343.0,1342.9,0.03507339]
[1673378154699,30.55966127,1343.0,1342.7,0.04164258]
[1673378155040,6.85362677,1342.9,1342.7,0.04164258]
[1673378155344,22.34136,1342.8,1342.7,0.04164258]
[1673378155950,23.66936,1342.8,1342.7,0.04164258]
[1673378156141,30.46702064,1342.8,1342.7,0.04164258]
[1673378158130,11.77512,1342.8,1342.7,0.04164258]
[1673378158340,3.0,1342.8,1342.7,0.04164258]
[1673378158599,17.89424,1342.8,1342.7,0.04164258]
[1673378158765,20.20497251,1342.8,1342.7,0.04164258]
[1673378158980,20.20297251,1342.8,1342.7,0.04164258]
[1673378159771,27.65009251,1342.8,1342.7,0.04164258]
[1673378159920,27.65009251,1342.8,1342.7,2.58e-06]
[1673378160128,32.77575315,1342.8,1342.7,2.58e-06]
[1673378160339,3.0,1342.8,1342.7,2.58e-06]
[1673378161087,3.0,1342.8,1342.7,7.44768258]
[1673378161305,3.0,1342.8,1342.7,7.54668258]
[1673378161631,3.0,1342.8,1342.7,0.09900258]
[1673378161841,3.0,1342.8,1342.7,2.58e-06]
[1673378162056,3.0,1342.8,1342.6,7.44798]
[1673378162057,5.23436461,1342.8,1342.6,7.44798]
[1673378162273,3.0,1342.7,1342.6,7.54698]
[1673378162608,0.04312065,1342.7,1342.6,7.54698]
[1673378162771,1.328,1342.9,1342.6,7.54698]
[1673378162965,1.328,1342.9,1342.6,0.099]
[1673378163180,23.66793,1342.9,1342.5,1.19592243]
[1673378163429,16.22125,1342.9,1342.5,8.54570243]
[1673378163646,8.77457,1342.9,1342.5,18.85711304]
[1673378164169,3.0,1342.8,1342.5,10.31141061]
[1673378164386,10.44741,1342.8,1342.5,2.86263061]
[1673378164541,17.89482,1342.8,1342.5,2.76363061]
[1673378164752,25.34223,1342.8,1342.4,2.51492243]
[1673378164961,25.34223,1342.8,1342.4,2.41592243]
[1673378165428,25.34223,1342.8,1342.5,1.84821706]
[1673378165754,25.34223,1342.8,1342.4,2.51492243]
[1673378165910,25.34223,1342.8,1342.5,1.84821406]
[1673378166115,9.982073,1342.7,1342.4,1.09692243]
[1673378166324,21.22741364,1342.7,1342.4,1.84821411]
[1673378166592,9.94855,1342.6,1342.3,0.14632865]
[1673378166760,12.94855,1342.6,1342.3,0.04732865]
[1673378166983,14.66973636,1342.6,1342.3,7.49720865]
[1673378167224,14.66973636,1342.6,1342.3,7.59620865]
[1673378167468,14.66973636,1342.6,1342.3,0.14632865]
[1673378167748,14.66973636,1342.6,1342.3,0.04732865]
[1673378167749,32.764177,1342.6,1342.3,0.04732865]
[1673378168054,3.0,1342.6,1342.3,0.04732865]
[1673378168268,3.0,1342.6,1342.3,22.39674865]
[1673378168480,3.002,1342.6,1342.3,7.59296865]
[1673378168651,3.0,1342.6,1342.3,7.59596865]
[1673378169060,10.44838,1342.6,1342.3,0.14632865]
[1673378169412,10.44838,1342.6,1342.3,0.04732865]
[1673378169951,17.89676,1342.6,1342.3,0.04732865]
[1673378170162,25.34514,1342.6,1342.3,0.04732865]
[1673378170435,29.671922,1342.6,1342.3,0.04732865]
[1673378170816,22.223542,1342.6,1342.3,0.04732865]
[1673378171539,22.223392,1342.6,1342.3,0.04732865]
[1673378172067,26.02090264,1342.6,1342.3,0.04732865]
[1673378172649,24.04922891,1342.6,1342.3,0.04732865]
[1673378172861,9.85378289,1342.5,1342.3,0.04732865]
[1673378175018,28.54908353,1342.5,1342.3,0.04732865]
[1673378175750,25.34802,1342.4,1342.3,0.04732865]
[1673378175906,29.14568064,1342.4,1342.3,0.04732865]
[1673378176585,29.37568064,1342.4,1342.3,0.04732865]
[1673378176801,33.75425999,1342.4,1342.3,0.04732865]
[1673378176959,32.64499909,1342.4,1342.3,0.04732865]
[1673378178049,33.97299909,1342.4,1342.3,0.04732865]
[1673378179390,42.13909047,1342.4,1342.3,0.04732865]
[1673378179598,42.13909047,1342.4,1342.3,8.65e-06]
[1673378179599,64.75920948,1342.4,1342.3,8.65e-06]
[1673378179844,6.99,1342.3,1342.2,3.88e-06]
[1673378180064,42.83272049,1342.3,1342.2,3.88e-06]
[1673378180221,76.05039049,1342.3,1342.2,3.88e-06]
[1673378180436,77.37839049,1342.3,1342.2,3.88e-06]
[1673378181106,80.22339049,1342.3,1342.2,3.88e-06]
[1673378181805,78.89539049,1342.3,1342.2,3.88e-06]
[1673378182023,72.73015159,1342.3,1342.2,3.88e-06]
[1673378182659,72.74891159,1342.3,1342.2,3.88e-06]
[1673378184525,72.74891159,1342.3,1342.1,9.76e-06]
[1673378184811,43.1128218,1342.2,1342.1,9.76e-06]
[1673378185131,65.6941718,1342.2,1342.1,9.76e-06]
[1673378185581,64.3661718,1342.2,1342.1,9.76e-06]
[1673378185745,65.6891718,1342.2,1342.1,9.76e-06]
[1673378189091,66.44129081,1342.2,1342.1,9.76e-06]
[1673378190323,73.89174081,1342.2,1342.1,9.76e-06]
[1673378191422,77.55491368,1342.2,1342.1,9.76e-06]
[1673378192053,14.858,1342.1,1342.0,5.11e-06]
[1673378192371,51.50499609,1342.1,1342.0,5.11e-06]
[1673378192894,59.91589609,1342.1,1342.0,5.11e-06]
[1673378193470,57.41589609,1342.1,1342.0,5.11e-06]
[1673378193795,56.08789609,1342.1,1342.0,5.11e-06]
[1673378195991,56.08989609,1342.1,1342.0,5.11e-06]
[1673378196206,56.08789609,1342.1,1342.0,5.11e-06]
[1673378199685,59.75278926,1342.1,1342.0,5.11e-06]
[1673378200343,56.08789609,1342.1,1342.0,5.11e-06]
[1673378200732,48.21989609,1342.1,1342.0,5.11e-06]
[1673378200949,48.99847112,1342.1,1342.0,5.11e-06]
[1673378201263,48.21989609,1342.1,1342.0,5.11e-06]
[1673378202252,35.08899609,1342.1,1342.0,5.11e-06]
[1673378202466,21.69966064,1342.1,1342.0,5.11e-06]
[1673378202678,19.72714286,1342.1,1342.0,5.11e-06]
[1673378202934,12.27614286,1342.1,1342.0,5.11e-06]
[1673378203097,0.066,1342.2,1342.0,5.11e-06]
[1673378203471,13.9132,1342.3,1342.0,5.11e-06]
[1673378203780,17.71086064,1342.3,1342.0,1.63903935]
[1673378204309,6.64266064,1342.3,1342.0,1.63903935]
[1673378205035,2.845,1342.3,1342.0,9.09036935]
[1673378205260,3.0,1342.2,1342.0,9.18936935]
[1673378205854,3.0,1342.2,1342.0,2.29703935]
[1673378206204,25.35256,1342.2,1342.0,0.55900511]
[1673378206364,25.35256,1342.2,1342.0,5.11e-06]
[1673378210571,29.15022064,1342.2,1342.0,5.11e-06]
[1673378210990,3.79766064,1342.1,1342.0,5.11e-06]
[1673378211254,29.15066064,1342.1,1342.0,5.11e-06]
[1673378211406,33.2663907,1342.1,1342.0,5.11e-06]
[1673378212076,33.4963907,1342.1,1342.0,5.11e-06]
[1673378212316,37.1630251,1342.1,1342.0,5.11e-06]
[1673378212467,51.1630251,1342.1,1342.0,5.11e-06]
[1673378212666,47.5322507,1342.1,1342.0,5.11e-06]
[1673378213322,52.0222507,1342.1,1342.0,5.11e-06]
[1673378215038,57.01620638,1342.1,1342.0,5.11e-06]
[1673378215634,53.3502507,1342.1,1342.0,5.11e-06]
[1673378218190,52.0222507,1342.1,1342.0,5.11e-06]
[1673378219724,51.9863907,1342.1,1342.0,5.11e-06]
[1673378222288,52.0409407,1342.1,1342.0,5.11e-06]
[1673378222442,64.48623117,1342.1,1342.0,5.11e-06]
[1673378222657,64.15085839,1342.1,1342.0,5.11e-06]
[1673378223003,60.8199407,1342.1,1342.0,5.11e-06]
[1673378224144,60.7653907,1342.1,1342.0,5.11e-06]
[1673378224349,25.37698661,1342.0,1341.9,0.05946727]
[1673378224564,39.52868498,1342.0,1341.9,0.05946727]
[1673378225012,44.01868498,1342.0,1341.9,0.05946727]
[1673378225235,49.01159292,1342.0,1341.9,7.27e-06]
[1673378225398,49.01159292,1342.0,1341.6,0.0417121]
[1673378225399,49.01193821,1342.0,1341.6,0.03956562]
[1673378225614,22.35801,1341.8,1341.6,0.03956562]
[1673378225824,3.79766064,1341.7,1341.6,0.03956562]
[1673378226017,25.0475389,1341.7,1341.6,0.03956562]
[1673378228384,0.066,1341.8,1341.6,0.03956562]
[1673378228536,3.79766064,1341.8,1341.6,0.03956562]
[1673378229608,18.70308064,1341.8,1341.6,0.03956562]
[1673378230168,26.15583064,1341.8,1341.6,0.03956562]
[1673378231616,28.64099616,1341.8,1341.6,0.03956562]
[1673378231967,23.63276238,1341.7,1341.6,0.03956562]
[1673378236590,27.43042302,1341.7,1341.6,0.03956562]
[1673378241933,27.66042302,1341.7,1341.6,0.03956562]
[1673378242361,27.66042302,1341.7,1341.6,5.62e-06]
[1673378242688,31.70354887,1341.7,1341.6,5.62e-06]
[1673378243685,41.17614913,1341.7,1341.6,5.62e-06]
[1673378243900,39.59966788,1341.7,1341.4,2.85131689]
[1673378244106,5.35566064,1341.6,1341.4,2.85131689]
[1673378244315,3.79766064,1341.5,1341.4,2.85131689]
[1673378244522,0.296,1341.6,1341.4,2.85131689]
[1673378244766,26.16068064,1341.5,1341.4,2.85131689]
[1673378245364,26.39068064,1341.5,1341.4,2.85131689]
[1673378245815,11.25200064,1341.5,1341.4,2.85131689]
[1673378246239,18.70634064,1341.5,1341.4,2.85131689]
[1673378246642,26.16068064,1341.5,1341.4,2.85131689]
[1673378247573,26.16268064,1341.5,1341.4,2.85131689]
[1673378247782,29.60639469,1341.5,1341.4,2.85131689]
[1673378249068,30.68292469,1341.5,1341.4,0.07713416]
[1673378249262,46.7630437,1341.5,1341.4,0.07713416]
[1673378249473,29.54097437,1341.4,1341.3,2.82048344]
[1673378249758,36.56863501,1341.4,1341.3,2.82048344]
[1673378250215,42.00995429,1341.4,1341.3,2.82048344]
[1673378250672,39.22463501,1341.4,1341.3,2.82048344]
[1673378251456,39.22463501,1341.4,1341.2,0.04451723]
[1673378251457,2.5,1341.3,1341.2,0.04451723]
[1673378251718,6.99,1341.2,1340.9,0.14351723]
[1673378251929,6.99,1341.2,1340.9,0.04451723]
[1673378251930,36.37136,1341.0,1340.9,0.04451723]
[1673378252103,41.49702064,1341.0,1340.9,0.04451723]
[1673378252299,21.02766064,1341.0,1340.9,0.04451723]
[1673378252517,20.79766064,1341.0,1340.9,0.04451723]
[1673378252770,30.3411467,1341.0,1340.9,0.04451723]
[1673378253142,20.79766064,1341.0,1340.9,0.04451723]
[1673378253565,0.066,1341.1,1340.9,1.56751723]
[1673378253719,0.05,1341.1,1340.9,10.35218723]
[1673378254071,14.0,1341.2,1340.9,10.45118723]
[1673378254211,17.79766064,1341.2,1340.9,12.95118723]
[1673378255300,17.79766064,1341.2,1340.9,1.66651723]
[1673378255301,20.7531867,1341.2,1340.9,1.66651723]
[1673378255457,28.2093167,1341.2,1340.9,0.04451723]
[1673378255672,43.1214467,1341.2,1340.9,0.04451723]
[1673378255994,3.79766064,1341.1,1340.9,0.04451723]
[1673378256218,22.37136,1341.0,1340.9,0.04451723]
[1673378256760,28.7925227,1341.0,1340.9,0.04451723]
[1673378257080,22.31752171,1341.0,1340.9,0.04451723]
[1673378257397,36.31752171,1341.0,1340.9,0.04451723]
[1673378257826,39.31752171,1341.0,1340.9,0.04451723]
[1673378258402,38.5654027,1341.0,1340.9,0.04451723]
[1673378259507,39.31752171,1341.0,1340.9,0.04451723]
[1673378260086,40.29852171,1341.0,1340.9,0.04451723]
[1673378260638,32.84140171,1341.0,1340.9,0.04451723]
[1673378261127,32.0892827,1341.0,1340.9,0.04451723]
[1673378262024,51.48464171,1341.0,1340.9,0.04451723]
[1673378264867,57.30264171,1341.0,1340.9,0.04451723]
[1673378265388,60.94750336,1341.0,1340.9,0.04451723]
[1673378265543,57.30264171,1341.0,1340.9,0.04451723]
[1673378266016,29.11328171,1341.0,1340.9,0.04451723]
[1673378266182,44.02752171,1341.0,1340.9,0.04451723]
[1673378266392,50.7325227,1341.0,1340.9,0.04451723]
[1673378267376,27.77284641,1341.0,1340.9,0.04451723]
[1673378267588,28.00284641,1341.0,1340.9,0.04451723]
[1673378267781,49.6220874,1341.0,1340.9,0.04451723]
[1673378271976,54.1308174,1341.0,1340.9,0.04451723]
[1673378272437,54.88293641,1341.0,1340.9,0.04451723]
[1673378273530,54.86420641,1341.0,1340.9,0.04451723]
[1673378275980,54.86620641,1341.0,1340.9,0.04451723]
[1673378276259,54.86420641,1341.0,1340.9,0.04451723]
[1673378279110,50.37420641,1341.0,1340.9,0.04451723]
[1673378281996,49.6220874,1341.0,1340.9,0.04451723]
[1673378283112,50.37420641,1341.0,1340.9,0.04451723]
[1673378283463,54.86420641,1341.0,1340.9,0.04451723]
[1673378287844,54.86420641,1341.0,1340.9,0.04163011]
[1673378288400,54.1140874,1341.0,1340.9,0.04163011]
[1673378288620,54.1120874,1341.0,1340.9,0.04163011]
[1673378290247,53.1310874,1341.0,1340.9,0.04163011]
[1673378293651,55.91640668,1341.0,1340.9,0.04163011]
[1673378293827,57.04100531,1341.0,1340.9,0.04163011]
[1673378296046,54.25568603,1341.0,1340.9,0.04163011]
[1673378297023,56.33580504,1341.0,1340.9,0.04163011]
[1673378298659,59.66672273,1341.0,1340.9,0.04163011]
[1673378299098,2.5,1340.9,1340.7,0.14930205]
[1673378299271,2.5,1340.9,1340.6,8.25159877]
[1673378299272,2.5,1340.7,1340.6,8.25159877]
[1673378299480,6.03347668,1340.7,1340.6,0.17569877]
[1673378299741,31.40984668,1340.7,1340.6,0.07669877]
[1673378300743,31.63984668,1340.7,1340.6,0.07669877]
[1673378301002,37.23586184,1340.7,1340.6,0.07669877]
[1673378301374,37.98798085,1340.7,1340.6,0.07669877]
[1673378302059,42.11205573,1340.7,1340.6,0.07669877]
[1673378302431,15.61161085,1340.7,1340.6,0.07669877]
[1673378302641,9.26347668,1340.7,1340.6,0.07669877]
[1673378302964,7.02766064,1340.7,1340.6,0.07669877]
[1673378303171,7.02766064,1340.7,1340.6,1.59969877]
[1673378303383,21.52437,1340.8,1340.6,1.59969877]
[1673378303694,17.79766064,1340.8,1340.6,1.59969877]
[1673378303917,25.25595064,1340.8,1340.6,1.59969877]
[1673378304101,11.25595064,1340.8,1340.6,2.29720574]
[1673378304317,2.30181604,1340.9,1340.7,1.321]
[1673378304691,2.30181604,1340.9,1340.8,1.328]
[1673378304692,14.0,1340.9,1340.8,1.328]
[1673378304859,4.91959863,1341.0,1340.8,2.652]
[1673378305050,3.729,1341.0,1340.8,4.9620004]
[1673378305259,3.729,1341.0,1340.9,0.49620004]
[1673378305636,3.729,1341.0,1340.9,9.28187004]
[1673378305819,3.729,1341.0,1340.9,10.69787004]
[1673378306153,3.729,1341.0,1340.9,3.24020004]
[1673378306369,3.729,1341.0,1340.9,3.14120004]
[1673378306886,3.729,1341.0,1340.9,13.09887004]
[1673378307075,3.729,1341.0,1340.9,13.19787004]
[1673378307758,2.61861636,1341.0,1340.9,3.24020004]
[1673378307898,2.61861636,1341.0,1340.9,3.14120004]
[1673378309837,2.61861636,1341.0,1340.9,28.01421004]
[1673378309981,2.61861636,1341.0,1340.9,28.11321004]
[1673378309982,0.64473262,1341.0,1340.9,28.11321004]
[1673378312761,1.24047,1341.2,1341.0,2.5]
[1673378312971,1.24047,1341.2,1341.1,0.25]
[1673378313626,1.24047,1341.2,1341.1,22.61968]
[1673378313786,1.24047,1341.2,1341.1,15.26212]
[1673378314001,1.24047,1341.2,1341.1,7.80556]
[1673378314326,1.24047,1341.2,1341.1,15.26212]
[1673378314538,5.29855836,1341.4,1341.1,15.26212]
[1673378314746,5.23255836,1341.4,1341.3,1.318]
[1673378315148,3.0,1341.4,1341.3,1.318]
[1673378315715,1.128,1341.5,1341.3,3.818]
[1673378315869,1.062,1341.5,1341.4,1.328]
[1673378316613,1.062,1341.5,1341.4,2.656]
[1673378316825,1.062,1341.5,1341.4,17.56578]
[1673378317059,1.062,1341.5,1341.4,17.66478]
[1673378317271,1.062,1341.5,1341.4,10.20989]
[1673378317606,1.062,1341.5,1341.4,4.91379432]
[1673378317759,1.062,1341.5,1341.4,4.81479432]
[1673378318828,1.062,1341.5,1341.4,19.72457432]
[1673378319039,1.062,1341.5,1341.4,19.82357432]
[1673378320616,1.062,1341.5,1341.4,18.49557432]
[1673378321178,1.062,1341.5,1341.4,1.427]
[1673378321386,15.97068,1341.5,1341.2,14.31226682]
[1673378321706,23.42502,1341.5,1341.2,14.31226682]
[1673378322226,19.76834064,1341.5,1341.2,12.98426682]
[1673378322386,1.97683406,1341.4,1341.2,12.98426682]
[1673378322597,11.93178406,1341.4,1341.2,12.98426682]
[1673378322806,9.43178406,1341.4,1341.2,12.98426682]
[1673378323103,9.43178406,1341.4,1341.2,0.10276682]
[1673378323222,1.97683406,1341.4,1341.2,0.00376682]
[1673378323687,11.93175406,1341.4,1341.2,0.00376682]
[1673378323911,13.03615406,1341.4,1341.1,1.319]
[1673378324310,13.03615406,1341.4,1341.1,8.77555]
[1673378324527,3.08123406,1341.4,1341.1,8.87455]
[1673378325437,10.53619406,1341.4,1341.1,8.87455]
[1673378326431,3.08123406,1341.4,1341.1,8.87455]
[1673378327058,1.1044,1341.4,1341.1,8.87455]
[1673378327450,1.1044,1341.4,1341.1,16.33111]
[1673378329744,1.1044,1341.4,1341.1,8.87455]
[1673378329953,1.1044,1341.4,1341.1,0.099]
[1673378329954,27.26683064,1341.4,1341.1,0.099]
[1673378330214,22.368,1341.2,1341.0,22.35621537]
[1673378330378,22.368,1341.2,1341.0,1.43801537]
[1673378330587,22.368,1341.2,1341.0,1.328]
[1673378330588,11.25385064,1341.2,1341.0,1.328]
[1673378330794,3.79766064,1341.2,1340.9,7.45761]
[1673378331116,6.69345301,1341.2,1340.9,7.55661]
[1673378331475,14.14946301,1341.2,1340.9,7.55661]
[1673378331685,14.14946301,1341.2,1340.9,15.01428]
[1673378331686,6.69345301,1341.2,1340.9,15.01428]
[1673378331909,3.79766064,1341.2,1340.9,15.01428]
[1673378333105,3.79766064,1341.2,1340.9,7.55661]
[1673378334307,3.79766064,1341.2,1340.9,8.87190222]
[1673378334684,3.79766064,1341.2,1340.9,10.87190222]
[1673378334896,3.79766064,1341.2,1340.9,8.87190222]
[1673378335137,3.79766064,1341.2,1340.9,16.32957222]
[1673378335780,3.79766064,1341.2,1340.9,20.89932244]
[1673378336640,0.97310221,1341.1,1340.9,20.89932244]
[1673378337118,3.86366064,1341.2,1340.9,20.89932244]
[1673378337325,3.79766064,1341.2,1340.9,20.89932244]
[1673378338669,1.093,1341.1,1340.9,20.89932244]
[1673378338885,1.093,1341.1,1340.9,28.35699244]
[1673378340686,1.093,1341.1,1341.0,1.328]
[1673378341333,1.093,1341.1,1341.0,8.78512]
[1673378341543,1.093,1341.1,1341.0,8.88412]
[1673378341996,1.093,1341.1,1341.0,1.427]
[1673378342215,1.093,1341.1,1341.0,1.328]
[1673378342597,1.093,1341.1,1341.0,0.291]
[1673378343787,1.093,1341.1,1341.0,15.20524]
[1673378343980,1.093,1341.1,1341.0,7.84712]
[1673378344313,1.093,1341.1,1341.0,22.76136]
[1673378345049,1.093,1341.1,1341.0,22.47036]
[1673378345226,1.093,1341.1,1341.0,15.01324]
[1673378346736,1.093,1341.1,1341.0,7.55612]
[1673378349736,1.093,1341.1,1341.0,15.01324]
[1673378349985,1.093,1341.1,1341.0,22.47036]
[1673378350672,1e-08,1341.1,1341.0,25.595921]
[1673378350886,0.55700001,1341.1,1341.0,18.138801]
[1673378351312,0.55700001,1341.1,1341.0,10.681681]
[1673378351732,0.55700001,1341.1,1341.0,3.224561]
[1673378351893,0.55700001,1341.1,1340.9,8.88414]
[1673378352268,0.55700001,1341.1,1340.9,18.84181]
[1673378352512,0.55700001,1341.1,1340.9,23.79948]
[1673378352897,0.55700001,1341.1,1340.9,16.34181]
[1673378353109,0.55700001,1341.1,1340.9,1.427]
[1673378353372,0.55700001,1341.1,1341.0,0.1427]
[1673378353528,0.55700001,1341.1,1341.0,2.9907]
[1673378354624,0.55700001,1341.1,1341.0,1.4677]
[1673378356959,0.55700001,1341.1,1341.0,0.1427]
[1673378357279,0.55700001,1341.1,1340.9,23.7998]
[1673378358314,0.55700001,1341.1,1340.9,1.427]
[1673378358473,0.55700001,1341.1,1340.9,1.328]
[1673378358682,0.55700001,1341.1,1340.9,8.78556]
[1673378358909,0.55700001,1341.1,1340.9,8.88456]
[1673378359630,0.55700001,1341.1,1340.9,1.427]
[1673378359840,1.6379115,1341.1,1340.9,1.328]
[1673378360070,30.60175702,1341.1,1340.8,13.1179]
[1673378360423,12.75333488,1341.0,1340.8,13.1179]
[1673378360789,6.59373552,1340.9,1340.8,0.099]
[1673378360994,6.59373552,1340.9,1340.6,0.07669877]
[1673378360995,24.64468222,1340.9,1340.6,0.07669877]
[1673378361198,4.79607488,1340.8,1340.6,0.07669877]
[1673378361457,25.12725901,1340.8,1340.6,0.07669877]
[1673378362379,31.15813954,1340.8,1340.6,0.07669877]
[1673378362703,33.95421442,1340.8,1340.6,0.07669877]
[1673378362923,10.85421144,1340.7,1340.6,0.07669877]
[1673378364935,18.31300144,1340.7,1340.6,0.07669877]
[1673378365304,29.56945208,1340.7,1340.6,0.07669877]
[1673378370352,29.79945208,1340.7,1340.6,0.07669877]
[1673378370562,35.47890659,1340.7,1340.6,0.07669877]
[1673378370927,54.71212648,1340.7,1340.6,0.07669877]
[1673378371088,57.50820136,1340.7,1340.6,0.07669877]
[1673378371509,32.33575648,1340.7,1340.6,0.07669877]
[1673378371922,54.71212648,1340.7,1340.6,0.07669877]
[1673378372395,59.20212648,1340.7,1340.6,0.07669877]
[1673378372708,59.20412648,1340.7,1340.6,0.07669877]
[1673378372927,56.96890659,1340.7,1340.6,0.07669877]
[1673378373239,59.20212648,1340.7,1340.6,9.877e-05]
[1673378373393,56.96890659,1340.7,1340.6,9.877e-05]
[1673378373863,69.50440659,1340.7,1340.6,9.877e-05]
[1673378378118,65.89607109,1340.7,1340.6,9.877e-05]
[1673378378368,37.71070109,1340.7,1340.6,9.877e-05]
[1673378378963,45.16949109,1340.7,1340.6,9.877e-05]
[1673378379173,52.64790109,1340.7,1340.6,9.877e-05]
[1673378379634,60.10669109,1340.7,1340.6,9.877e-05]
[1673378380641,60.08707109,1340.7,1340.6,9.877e-05]
[1673378380903,60.11108109,1340.7,1340.6,9.877e-05]
[1673378381218,37.90017208,1340.7,1340.6,9.877e-05]
[1673378381541,45.10495208,1340.7,1340.6,9.877e-05]
[1673378381752,34.25074064,1340.7,1340.6,9.877e-05]
[1673378382181,41.70953064,1340.7,1340.6,9.877e-05]
[1673378382410,29.17403064,1340.7,1340.6,9.877e-05]
[1673378383628,3.0,1340.7,1340.6,9.877e-05]
[1673378383838,3.0,1340.7,1340.6,1.52309877]
[1673378384049,3.0,1340.7,1340.6,9.877e-05]
[1673378384279,3.0,1340.7,1340.6,14.91877877]
[1673378384442,3.0,1340.7,1340.6,15.01777877]
[1673378384878,10.45879,1340.7,1340.6,0.09909877]
[1673378385104,3.0,1340.7,1340.6,9.877e-05]
[1673378385275,3.0,1340.7,1340.6,14.91877877]
[1673378385486,0.595,1340.8,1340.6,4.35685065]
[1673378385693,0.529,1340.8,1340.7,1.321]
[1673378388439,15.44546,1340.8,1340.7,1.321]
[1673378388865,22.90369,1340.8,1340.7,1.321]
[1673378389325,15.44546,1340.8,1340.7,1.321]
[1673378390219,15.44546,1340.8,1340.6,14.74721144]
[1673378390220,22.90369,1340.8,1340.6,14.74721144]
[1673378390534,22.90369,1340.8,1340.6,13.34919877]
[1673378390755,22.90369,1340.8,1340.6,0.099]
[1673378390966,22.90369,1340.8,1340.5,9.6372]
[1673378391158,22.90369,1340.8,1340.5,11.24239]
[1673378392040,3.79766064,1340.7,1340.5,0.099]
[1673378392377,3.79766064,1340.7,1340.3,10.84671866]
[1673378392378,22.37802,1340.6,1340.3,10.84671866]
[1673378392549,22.37802,1340.6,1340.3,10.94571866]
[1673378394321,22.37802,1340.6,1340.3,9.06091866]
[1673378394653,26.04663495,1340.6,1340.3,9.06091866]
[1673378395316,29.84429559,1340.6,1340.3,9.06091866]
[1673378396753,26.17568064,1340.6,1340.3,9.06091866]
[1673378399375,28.40890053,1340.6,1340.3,8.96091866]
[1673378399581,31.20497541,1340.6,1340.3,8.96091866]
[1673378400207,28.40890053,1340.6,1340.3,8.96091866]
[1673378400459,32.35712297,1340.6,1340.3,8.96091866]
[1673378400997,35.15319785,1340.6,1340.3,8.96091866]
[1673378404133,32.35712297,1340.6,1340.3,8.96091866]
[1673378404344,24.61123989,1340.6,1340.3,8.96091866]
[1673378404558,14.91868,1340.6,1340.3,8.96091866]
[1673378404726,14.91868,1340.6,1340.3,10.96091866]
[1673378404936,14.91868,1340.6,1340.3,8.96091866]
[1673378405250,7.45934,1340.6,1340.3,8.96091866]
[1673378405459,13.30654378,1340.7,1340.3,23.11299695]
[1673378405460,20.31112477,1340.7,1340.3,23.11299695]
[1673378405728,24.04278541,1340.7,1340.3,20.61299695]
[1673378405895,31.50181541,1340.7,1340.3,13.15213695]
[1673378406109,38.96084541,1340.7,1340.3,13.15213695]
[1673378406722,2.23321989,1340.6,1340.3,13.14913695]
[1673378406931,17.15240989,1340.6,1340.3,13.15213695]
[1673378407397,24.61216989,1340.6,1340.3,13.15213695]
[1673378408106,6.03088053,1340.5,1340.3,0.099]
[1673378408327,6.03088053,1340.5,1340.2,12.90842067]
[1673378408328,24.61456989,1340.4,1340.2,12.90842067]
[1673378408985,24.61456989,1340.4,1340.2,0.20072067]
[1673378409200,24.61456989,1340.4,1340.2,0.10172067]
[1673378410314,22.38135,1340.4,1340.2,0.10172067]
[1673378410753,24.61456989,1340.4,1340.2,0.10172067]
[1673378410963,22.38135,1340.4,1340.2,0.10172067]
[1673378411192,22.38135,1340.4,1340.1,6.88576151]
[1673378411591,2.29921989,1340.5,1340.1,33.23087928]
[1673378411806,12.69332989,1340.5,1340.2,2.5]
[1673378412072,12.69332989,1340.5,1340.2,3.825]
[1673378412242,10.46011,1340.5,1340.2,7.67802777]
[1673378412566,10.46011,1340.5,1340.2,5.27702777]
[1673378412725,11.67211,1340.5,1340.2,5.27702777]
[1673378413206,13.90532989,1340.5,1340.2,5.27702777]
[1673378413362,21.36543989,1340.5,1340.2,1.424]
[1673378413572,21.36543989,1340.5,1340.2,1.325]
[1673378415613,21.36543989,1340.5,1340.2,3.825]
[1673378415804,21.36543989,1340.5,1340.2,1.325]
[1673378416559,19.13222,1340.5,1340.2,3.825]
[1673378416775,19.13222,1340.5,1340.2,6.93178757]
[1673378416943,19.13222,1340.5,1340.2,7.03078757]
[1673378417159,11.67211,1340.5,1340.2,7.03078757]
[1673378420505,1.212,1340.5,1340.4,2.646]
[1673378420716,1.214,1340.5,1340.4,20.69480576]
[1673378420926,0.10122319,1340.5,1340.4,10.83335576]
[1673378421460,0.10122319,1340.5,1340.4,3.37290576]
[1673378421815,0.10122319,1340.5,1340.4,3.27390576]
[1673378424913,22.48092319,1340.5,1340.4,3.27390576]
[1673378425142,22.48092319,1340.5,1340.3,13.7968]
[1673378425347,15.02102319,1340.5,1340.3,13.7968]
[1673378425801,15.02102319,1340.5,1340.3,1.426]
[1673378426011,15.02102319,1340.5,1340.3,1.327]
[1673378427748,7.56112319,1340.5,1340.3,1.327]
[1673378428365,22.48092319,1340.5,1340.3,1.327]
[1673378429394,15.02102319,1340.5,1340.3,1.327]
[1673378429666,17.25424308,1340.5,1340.3,1.327]
[1673378429966,24.71414308,1340.5,1340.3,1.327]
[1673378430590,17.25424308,1340.5,1340.3,1.327]
[1673378430762,22.48092319,1340.5,1340.3,1.327]
[1673378431389,0.10122319,1340.5,1340.3,1.5922]
[1673378431663,0.10122319,1340.5,1340.4,8.78845]
[1673378431820,0.10122319,1340.5,1340.4,1.427]
[1673378432033,0.10122319,1340.5,1340.4,1.328]
[1673378432244,0.10122319,1340.5,1340.4,2.243305]